{"text_format":"1","workbook":"xlsx","n_sheets":1,"sheets":["Foreign_Exchange"],"not_rendered":{"charts":0,"images":4,"macros":1,"external_links":0,"defined_names":1,"comments":0,"pivot_tables":0},"unopened":[],"bounds":{"document_bytes":16777216,"sheet_cells":100000,"rows_first":2000,"rows_last":500,"rows_between":2000,"halvings":0,"cell_chars":16384,"cell_head_chars":4096},"cells_cut":0,"cells_raw":0,"read":"whole","date_system":"1900"}

{"sheet":"Foreign_Exchange","index":0,"n_rows":37,"n_cols":34,"rows_kept":37,"cut":false,"hidden":false,"merged":[[26,22,26,26],[2,1,3,27],[7,13,7,17],[5,22,5,26],[6,22,6,26],[10,22,10,26],[11,22,11,26],[13,13,13,17],[18,22,18,26],[19,22,19,26],[21,13,21,17],[27,22,27,26],[29,13,29,17],[33,22,33,26],[34,22,34,26],[36,13,36,17]]}
[]
[]
[null,"N4 Lifeskills - Foreign Exchange"]
[]
[null,null,null,null,null,null,null,null,null,null,null,null,null,null,null,null,null,null,null,null,null,null,null,null,null,null,null,null,null,null,null,{"$f":"ROUND(RAND()*(2.45-1.15)+1.15,2)","v":1.53},"exchange rate"]
[null,{"$f":"\"Q1. Kyle is going to Spain on holiday and wants to exchange £\"&AF6&\" into euros.\"","v":"Q1. Kyle is going to Spain on holiday and wants to exchange £630 into euros."},null,null,null,null,null,null,null,null,null,null,null,null,null,null,null,null,null,null,null,null,"Exchange Rate",null,null,null,null,null,null,null,null,{"$f":"ROUND(RAND()*(90-40)+40,0)*10","v":630}]
[null,null,null,null,null,null,null,null,null,null,null,null,null,null,null,null,null,null,null,null,null,null,{"$f":"M8&TEXT(AF5,\"0.00\")&\" to the £\"","v":"€1.53 to the £"},null,null,null,null,null,null,null,null,{"$f":"AF5*AF6","v":963.9}]
[null,null,"How many euros will he receive ?",null,null,null,null,null,null,null,null,null,"€"]
[]
[null,null,null,null,null,null,null,null,null,null,null,null,null,null,null,null,null,null,null,null,null,null,null,null,null,null,null,null,null,null,null,{"$f":"ROUND(RAND()*(2.45-1.15)+1.15,2)","v":1.95},"exchange rate"]
[null,{"$f":"\"Q2. Wiktoria is coming over from Poland to Scotland on holiday.\"","v":"Q2. Wiktoria is coming over from Poland to Scotland on holiday."},null,null,null,null,null,null,null,null,null,null,null,null,null,null,null,null,null,null,null,null,"Exchange Rate",null,null,null,null,null,null,null,null,{"$f":"ROUND(RAND()*(90-40)+40,0)*10","v":610}]
[null,null,{"$f":"\"She needs to exchange \"&M8&TEXT(AF12,\"0.00\")&\" in £'s.\"","v":"She needs to exchange €1189.50 in £'s."},null,null,null,null,null,null,null,null,null,null,null,null,null,null,null,null,null,null,null,{"$f":"M8&TEXT(AF10,\"0.00\")&\" to the £\"","v":"€1.95 to the £"},null,null,null,null,null,null,null,null,{"$f":"AF10*AF11","v":1189.5}]
[]
[null,null,"How many pounds will she receive ?",null,null,null,null,null,null,null,null,null,"£"]
[]
[]
[null,{"$f":"\"Q3. While on holiday Linda bought a iphone in New York for \"&AF21&TEXT(AF20,\"0.00\")&\".\"","v":"Q3. While on holiday Linda bought a iphone in New York for $1018.70."}]
[null,null,{"$f":"\"Back home in Scotland she could buy the same iphone for £\"&AF23&\".\"","v":"Back home in Scotland she could buy the same iphone for £636."},null,null,null,null,null,null,null,null,null,null,null,null,null,null,null,null,null,null,null,null,null,null,null,null,null,null,null,null,{"$f":"ROUND(RAND()*(2.45-1.15)+1.15,2)","v":1.67},"exchange rate"]
[null,null,null,null,null,null,null,null,null,null,null,null,null,null,null,null,null,null,null,null,null,null,"Exchange Rate",null,null,null,null,null,null,null,null,{"$f":"ROUND(RAND()*(90-40)+40,0)*10","v":610}]
[null,null,{"$f":"AH22","v":"How much did she save buying it in New York."},null,null,null,null,null,null,null,null,null,null,null,null,null,null,null,null,null,null,null,{"$f":"AF21&TEXT(AF18,\"0.00\")&\" to the £\"","v":"$1.67 to the £"},null,null,null,null,null,null,null,null,{"$f":"AF18*AF19","v":1018.6999999999999}]
[null,null,null,null,null,null,null,null,null,null,null,null,null,null,null,null,null,null,null,null,null,null,null,null,null,null,null,null,null,null,null,"$"]
[null,null,null,null,null,null,null,null,null,null,null,null,"£",null,null,null,null,null,null,null,null,null,null,null,null,null,null,null,null,null,null,{"$f":"ROUND(RAND()*(70-10)+10,0)","v":26},{"$f":"ROUND(RAND()*(1-0)+0,0)","v":0},{"$f":"IF(AG22=1,\"How much could she have saved buying it in Scotland.\",\"How much did she save buying it in New York.\")","v":"How much did she save buying it in New York."}]
[null,null,null,null,null,null,null,null,null,null,null,null,null,null,null,null,null,null,null,null,null,null,null,null,null,null,null,null,null,null,null,{"$f":"IF(AG22=1,AF19-AF22,AF19+AF22)","v":636}]
[]
[null,{"$f":"\"Q4. John lives in Paris and is going on a 3 day trip to Glasgow before going to New York.\"","v":"Q4. John lives in Paris and is going on a 3 day trip to Glasgow before going to New York."}]
[null,null,{"$f":"\"He exchanged \"&M8&TEXT(AF28,\"0.00\")&\" to pounds.\"","v":"He exchanged €4271.40 to pounds."},null,null,null,null,null,null,null,null,null,null,null,null,null,null,null,null,null,null,null,null,null,null,null,null,null,null,null,null,{"$f":"ROUND(RAND()*(2.45-1.15)+1.15,2)","v":2.2599999999999998},"exchange rate"]
[null,null,null,null,null,null,null,null,null,null,null,null,null,null,null,null,null,null,null,null,null,null,"Exchange Rate",null,null,null,null,null,null,null,null,{"$f":"ROUND(RAND()*(300-150)+150,0)*10","v":1890}]
[null,null,{"$f":"\"How much did he get in pounds.\"","v":"How much did he get in pounds."},null,null,null,null,null,null,null,null,null,null,null,null,null,null,null,null,null,null,null,{"$f":"M8&TEXT(AF26,\"0.00\")&\" to the £\"","v":"€2.26 to the £"},null,null,null,null,null,null,null,null,{"$f":"AF26*AF27","v":4271.3999999999996}]
[null,null,null,null,null,null,null,null,null,null,null,null,null,null,null,null,null,null,null,null,null,null,null,null,null,null,null,null,null,null,null,{"$f":"ROUND(RAND()*(50-11)+11,0)*10","v":180}]
[null,null,null,null,null,null,null,null,null,null,null,null,"£",null,null,null,null,null,null,null,null,null,null,null,null,null,null,null,null,null,null,{"$f":"ROUND(RAND()*(70-10)+10,0)","v":10}]
[null,null,null,null,null,null,null,null,null,null,null,null,null,null,null,null,null,null,null,null,null,null,null,null,null,null,null,null,null,null,null,{"$f":"IF(AG30=1,AF27-AF30,AF27+AF30)","v":1900}]
[null,null,{"$f":"\"While in Glasgow he spent £\"&AF29&\".\"","v":"While in Glasgow he spent £180."}]
[null,null,null,null,null,null,null,null,null,null,null,null,null,null,null,null,null,null,null,null,null,null,null,null,null,null,null,null,null,null,null,{"$f":"ROUND(RAND()*(2.45-1.15)+1.15,2)","v":1.8},"exchange rate"]
[null,null,null,null,null,null,null,null,null,null,null,null,null,null,null,null,null,null,null,null,null,null,"Exchange Rate",null,null,null,null,null,null,null,null,{"$f":"AF27-AF29","v":1710}]
[null,null,"How many dollars and cents did he have when he arrived in New York.",null,null,null,null,null,null,null,null,null,null,null,null,null,null,null,null,null,null,null,{"$f":"M37&TEXT(AF33,\"0.00\")&\" to the £\"","v":"$1.80 to the £"},null,null,null,null,null,null,null,null,{"$f":"AF33*AF34","v":3078}]
[]
[null,null,null,null,null,null,null,null,null,null,null,null,"$"]